[Event "Masterklassen-Elit 2025"]
[Site "Uppsala, Sweden"]
[Date "2025.07.03"]
[Round "6.5"]
[White "Lindberg, Bengt"]
[Black "Landgren, Andreas"]
[Result "1-0"]
[TimeControl "90 min for 40 move + 30 min with an increment of 30 sec starting move 1"]
[WhiteTitle "IM"]
[BlackTitle "FM"]
[WhiteFideId "1700359"]
[BlackFideId "1704311"]
[WhiteElo "2334"]
[BlackElo "2261"]

1. Nf3 {[%clk 01:30:48]} {[%emt 00:00:11]} Nf6 {[%clk 01:30:51]} {[%emt
00:00:09]} 2. e3 {[%clk 01:30:32]} {[%emt 00:00:45]} g6 {[%clk 01:26:23]}
{[%emt 00:04:59]} 3. b3 {[%clk 01:30:24]} {[%emt 00:00:38]} Bg7 {[%clk
01:25:52]} {[%emt 00:01:01]} 4. Bb2 {[%clk 01:30:46]} {[%emt 00:00:08]} c5
{[%clk 01:25:09]} {[%emt 00:01:14]} 5. c4 {[%clk 01:28:57]} {[%emt 00:02:18]}
O-O {[%clk 01:25:14]} {[%emt 00:00:26]} 6. Be2 {[%clk 01:28:34]} {[%emt
00:00:52]} d5 {[%clk 01:25:02]} {[%emt 00:00:42]} 7. cxd5 {[%clk 01:16:29]}
{[%emt 00:12:35]} Qxd5 {[%clk 01:25:19]} {[%emt 00:00:13]} 8. Nc3 {[%clk
01:14:48]} {[%emt 00:02:11]} Qf5 {[%clk 01:25:30]} {[%emt 00:00:19]} 9. d3
{[%clk 01:11:25]} {[%emt 00:03:52]} Nc6 {[%clk 01:24:39]} {[%emt 00:01:22]} 10.
Rc1 {[%clk 01:09:24]} {[%emt 00:02:30]} Rd8 {[%clk 01:19:46]} {[%emt 00:05:23]}
11. O-O {[%clk 01:06:37]} {[%emt 00:03:17]} b6 {[%clk 01:18:36]} {[%emt
00:01:42]} 12. Rc2 {[%clk 00:59:59]} {[%emt 00:07:06]} Ba6 {[%clk 01:09:45]}
{[%emt 00:09:22]} 13. Rd2 {[%clk 00:59:58]} {[%emt 00:00:31]} e5 {[%clk
01:02:13]} {[%emt 00:08:02]} 14. Qb1 {[%clk 00:56:44]} {[%emt 00:03:42]} Rd7
{[%clk 00:58:28]} {[%emt 00:04:17]} 15. Rfd1 {[%clk 00:54:06]} {[%emt
00:03:08]} Rad8 {[%clk 00:56:18]} {[%emt 00:02:40]} 16. Ne4 {[%clk 00:45:29]}
{[%emt 00:09:06]} h6 {[%clk 00:45:59]} {[%emt 00:10:50]} 17. h3 {[%emt
00:06:16]} Qe6 {[%clk 00:44:05]} {[%emt 00:00:57]} 18. Nxf6+ {[%clk 00:39:36]}
{[%emt 00:02:04]} Bxf6 {[%clk 00:43:38]} {[%emt 00:00:57]} 19. Bf1 {[%clk
00:37:40]} {[%emt 00:02:26]} Bg7 {[%clk 00:37:30]} {[%emt 00:06:39]} 20. Bc3
{[%clk 00:33:50]} {[%emt 00:04:20]} f5 {[%clk 00:35:05]} {[%emt 00:02:55]} 21.
Qa1 {[%clk 00:31:36]} {[%emt 00:02:43]} Kh7 {[%clk 00:34:26]} {[%emt 00:01:10]}
22. Qb2 {[%clk 00:26:31]} {[%emt 00:05:35]} Qe7 {[%clk 00:29:27]} {[%emt
00:05:29]} 23. a3 {[%clk 00:26:29]} {[%emt 00:00:33]} Nd4 {[%clk 00:23:21]}
{[%emt 00:06:36]} 24. b4 {[%clk 00:15:23]} {[%emt 00:11:36]} Nxf3+ {[%clk
00:14:00]} {[%emt 00:09:50]} 25. gxf3 {[%clk 00:15:51]} {[%emt 00:00:02]} Bb7
{[%clk 00:13:09]} {[%emt 00:01:21]} 26. Bg2 {[%clk 00:15:40]} {[%emt 00:00:40]}
cxb4 {[%clk 00:07:41]} {[%emt 00:05:59]} 27. axb4 {[%clk 00:16:05]} {[%emt
00:00:05]} Qg5 {[%clk 00:05:01]} {[%emt 00:03:10]} 28. Kh2 {[%emt 00:01:52]}
Qh5 29. Bxe5 {[%clk 00:14:07]} {[%emt 00:01:55]} Bxf3 {[%clk 00:04:12]} {[%emt
00:01:00]} 30. Bxf3 {[%clk 00:13:33]} {[%emt 00:01:04]} Qxf3 {[%clk 00:04:13]}
{[%emt 00:00:30]} 31. Bxg7 {[%clk 00:12:16]} {[%emt 00:01:47]} Rxg7 {[%clk
00:04:40]} {[%emt 00:00:02]} 32. Qe5 {[%clk 00:11:33]} {[%emt 00:01:12]} Qd5
{[%clk 00:04:01]} {[%emt 00:01:10]} 33. Qxd5 {[%clk 00:11:51]} {[%emt
00:00:13]} Rxd5 {[%clk 00:04:29]} {[%emt 00:00:01]} 34. Ra2 {[%clk 00:10:54]}
{[%emt 00:01:25]} a5 {[%clk 00:03:37]} {[%emt 00:01:23]} 35. bxa5 {[%clk
00:11:19]} {[%emt 00:00:05]} bxa5 {[%clk 00:03:18]} {[%emt 00:00:50]} 36. d4
{[%clk 00:11:26]} {[%emt 00:00:22]} Ra7 {[%clk 00:03:05]} {[%emt 00:00:44]} 37.
Ra4 {[%clk 00:11:23]} {[%emt 00:00:32]} Kg7 {[%clk 00:02:51]} {[%emt 00:00:45]}
38. Kg2 {[%clk 00:09:08]} {[%emt 00:02:43]} Rb5 {[%clk 00:02:53]} {[%emt
00:00:29]} 39. Rda1 {[%clk 00:09:20]} {[%emt 00:00:18]} Kf6 {[%clk 00:02:52]}
{[%emt 00:00:30]} 40. R1a2 {[%clk 00:07:17]} {[%emt 00:02:33]} Ke6 {[%clk
00:02:14]} {[%emt 00:01:09]} 41. f3 {[%clk 00:24:45]} {[%emt 00:13:01]} Kd5
{[%clk 00:31:20]} {[%emt 00:01:25]} 42. Kf2 {[%clk 00:23:04]} {[%emt 00:02:10]}
Ra6 {[%clk 00:31:18]} {[%emt 00:00:33]} 43. Ke2 {[%clk 00:21:48]} {[%emt
00:01:46]} Ra7 {[%clk 00:31:04]} {[%emt 00:00:43]} 44. R2a3 {[%clk 00:18:22]}
{[%emt 00:03:56]} Kc6 {[%clk 00:26:45]} {[%emt 00:04:50]} 45. Rc4+ {[%clk
00:14:28]} {[%emt 00:04:23]} Kd6 {[%clk 00:16:21]} {[%emt 00:10:55]} 46. Kd3
{[%clk 00:13:07]} {[%emt 00:01:49]} Rab7 {[%clk 00:12:34]} {[%emt 00:04:20]} 47.
Rac3 {[%clk 00:12:49]} {[%emt 00:00:46]} R7b6 {[%clk 00:11:37]} {[%emt
00:01:27]} 48. e4 {[%clk 00:08:44]} {[%emt 00:04:35]} fxe4+ {[%clk 00:10:27]}
{[%emt 00:01:41]} 49. fxe4 {[%clk 00:09:12]} Rb1 {[%clk 00:05:36]} {[%emt
00:05:22]} 50. e5+ {[%emt 00:00:24]} Ke6 {[%clk 00:05:17]} {[%emt 00:00:40]} 51.
Rc6+ {[%clk 00:08:22]} {[%emt 00:01:35]} Kf5 {[%clk 00:03:49]} {[%emt
00:01:59]} 52. Rxb6 {[%clk 00:07:08]} {[%emt 00:01:44]} Rxb6 {[%clk 00:04:17]}
{[%emt 00:00:02]} 53. Rc8 {[%clk 00:05:48]} {[%emt 00:01:50]} a4 {[%clk
00:02:47]} {[%emt 00:02:00]} 54. Rf8+ {[%clk 00:05:50]} {[%emt 00:00:26]} Kg5
{[%clk 00:03:12]} {[%emt 00:00:07]} 55. Ra8 {[%clk 00:03:22]} {[%emt 00:02:58]}
Kf5 {[%clk 00:01:11]} {[%emt 00:02:31]} 56. Rxa4 {[%clk 00:03:31]} {[%emt
00:00:20]} Rb1 {[%clk 00:01:14]} {[%emt 00:00:27]} 57. Ra6 {[%clk 00:03:06]}
{[%emt 00:00:56]} Rd1+ {[%clk 00:01:37]} {[%emt 00:00:08]} 58. Ke3 {[%clk
00:01:30]} {[%emt 00:02:05]} Re1+ {[%clk 00:01:23]} {[%emt 00:00:43]} 59. Kd2
{[%clk 00:01:51]} {[%emt 00:00:09]} Rb1 {[%clk 00:01:01]} {[%emt 00:00:53]} 60.
Kc2 {[%clk 00:00:45]} {[%emt 00:01:36]} Re1 {[%clk 00:00:52]} {[%emt 00:00:39]}
61. Kd3 {[%clk 00:00:36]} {[%emt 00:00:37]} Rd1+ {[%clk 00:01:20]} {[%emt
00:00:04]} 62. Kc4 {[%clk 00:00:53]} {[%emt 00:00:13]} Ke4 {[%clk 00:01:44]}
{[%emt 00:00:05]} 63. Rd6 {[%clk 00:01:18]} {[%emt 00:00:05]} Rc1+ {[%clk
00:02:03]} {[%emt 00:00:12]} 64. Kb5 {[%clk 00:01:42]} {[%emt 00:00:05]} g5
{[%clk 00:01:59]} {[%emt 00:00:35]} 65. e6 {[%clk 00:01:53]} {[%emt 00:00:18]}
Kf5 {[%clk 00:02:11]} {[%emt 00:00:18]} 66. d5 {[%clk 00:02:05]} Rc8 {[%clk
00:02:14]} {[%emt 00:00:45]} 67. Rc6 {[%emt 00:01:17]} Re8 {[%clk 00:02:34]}
{[%emt 00:00:07]} 68. Kc5 {[%clk 00:01:28]} {[%emt 00:00:25]} Ke5 {[%clk
00:02:57]} {[%emt 00:00:07]} 69. Rc7 {[%clk 00:01:33]} {[%emt 00:00:24]} h5
{[%clk 00:03:20]} {[%emt 00:00:08]} 70. Kc6 {[%clk 00:01:26]} g4 {[%clk
00:01:18]} {[%emt 00:03:10]} 71. hxg4 {[%clk 00:01:51]} {[%emt 00:00:04]} hxg4
{[%clk 00:01:45]} {[%emt 00:00:02]} 72. Rg7 {[%clk 00:01:47]} {[%emt 00:00:34]}
Rc8+ {[%clk 00:01:48]} {[%emt 00:00:28]} 73. Kd7 {[%clk 00:01:02]} {[%emt
00:01:14]} Ra8 {[%clk 00:02:15]} {[%emt 00:00:04]} 74. Rg5+ {[%clk 00:00:45]}
{[%emt 00:00:46]} Kf4 {[%clk 00:02:31]} {[%emt 00:00:15]} 75. Rh5 {[%clk
00:00:37]} {[%emt 00:00:38]} g3 {[%clk 00:02:57]} {[%emt 00:00:04]} 76. Rh1
{[%clk 00:00:59]} {[%emt 00:00:08]} Ke5 {[%clk 00:02:57]} {[%emt 00:00:30]} 77.
e7 {[%clk 00:00:35]} {[%emt 00:00:54]} Kxd5 {[%clk 00:02:30]} {[%emt 00:00:57]}
78. Re1 {[%clk 00:00:54]} {[%emt 00:00:09]} Ra7+ {[%clk 00:02:42]} {[%emt
00:00:20]} 79. Ke8 {[%clk 00:01:22]} {[%emt 00:00:01]} Ra4 {[%clk 00:01:17]}
{[%emt 00:01:57]} 80. Kf7 {[%clk 00:01:12]} {[%emt 00:00:37]} Rf4+ {[%clk
00:00:44]} {[%emt 00:01:05]} 81. Kg6 {[%clk 00:01:37]} {[%emt 00:00:05]} g2
{[%clk 00:00:47]} {[%emt 00:00:28]} 82. Rd1+ {[%clk 00:01:13]} {[%emt
00:00:53]} Kc4 {[%clk 00:00:48]} {[%emt 00:00:30]} 83. e8=Q {[%clk 00:01:13]}
{[%emt 00:00:30]} Rg4+ {[%clk 00:01:13]} {[%emt 00:00:04]} 84. Kh5 {[%clk
00:01:03]} {[%emt 00:00:39]} g1=Q {[%clk 00:01:37]} {[%emt 00:00:06]} 85. Qc8+
{[%clk 00:00:44]} {[%emt 00:00:49]} Kb3 {[%clk 00:01:41]} {[%emt 00:00:27]} 86.
Qxg4 {[%clk 00:00:41]} {[%emt 00:00:32]} Qh2+ {[%clk 00:01:42]} {[%emt
00:00:30]} 87. Kg6 {[%clk 00:00:53]} {[%emt 00:00:17]} Qc2+ {[%clk 00:02:00]}
{[%emt 00:00:12]} 88. Kf7 {[%clk 00:00:47]} {[%emt 00:00:36]} Qf2+ {[%clk
00:02:09]} {[%emt 00:00:22]} 89. Ke7 {[%clk 00:00:54]} {[%emt 00:00:22]} Qc5+
{[%clk 00:01:47]} {[%emt 00:00:53]} 90. Rd6 {[%clk 00:01:10]} {[%emt 00:00:12]}
Kc3 {[%clk 00:00:53]} {[%emt 00:01:25]} 91. Qf3+ {[%clk 00:01:05]} {[%emt
00:00:36]} Kb4 {[%clk 00:00:32]} {[%emt 00:00:51]} 92. Qe4+ {[%clk 00:00:48]}
{[%emt 00:00:46]} Ka3 {[%clk 00:00:44]} {[%emt 00:00:19]} 93. Qd3+ {[%clk
00:01:00]} {[%emt 00:00:17]} 1-0

[Event "Masterklassen-Elit 2025"]
[Site "Uppsala, Sweden"]
[Date "2025.07.04"]
[Round "7.1"]
[White "Wiedenkeller, Michael"]
[Black "Ljung, Harald"]
[Result "1-0"]
[TimeControl "90 min for 40 move + 30 min with an increment of 30 sec starting move 1"]
[WhiteTitle "IM"]
[WhiteFideId "1700146"]
[BlackFideId "1738178"]
[WhiteElo "2384"]
[BlackElo "2194"]

1. d4 {[%clk 01:30:31]} {[%emt 00:00:28]} d5 {[%clk 01:30:53]} {[%emt
00:00:07]} 2. c4 {[%clk 01:30:40]} {[%emt 00:00:21]} e6 {[%clk 01:31:17]}
{[%emt 00:00:06]} 3. Nc3 {[%clk 01:30:40]} {[%emt 00:00:31]} Nf6 {[%clk
01:31:38]} {[%emt 00:00:08]} 4. cxd5 {[%clk 01:30:54]} {[%emt 00:00:17]} exd5
{[%clk 01:31:55]} {[%emt 00:00:13]} 5. Bg5 {[%clk 01:31:12]} {[%emt 00:00:12]}
Be7 {[%clk 01:31:36]} {[%emt 00:00:49]} 6. e3 {[%clk 01:31:26]} {[%emt
00:00:16]} c6 {[%clk 01:32:02]} {[%emt 00:00:05]} 7. Bd3 {[%clk 01:25:54]}
{[%emt 00:06:02]} Nbd7 {[%clk 01:32:20]} {[%emt 00:00:11]} 8. Qc2 {[%clk
01:18:18]} {[%emt 00:08:06]} Nf8 {[%clk 01:32:15]} {[%emt 00:00:36]} 9. Nf3
{[%clk 01:16:35]} {[%emt 00:02:12]} Ne6 {[%clk 01:26:52]} {[%emt 00:05:53]} 10.
Bh4 {[%clk 01:14:25]} {[%emt 00:02:40]} g6 {[%clk 01:26:11]} {[%emt 00:01:11]}
11. O-O {[%clk 01:12:42]} {[%emt 00:02:14]} O-O {[%clk 01:25:31]} {[%emt
00:01:09]} 12. Rab1 {[%clk 01:09:55]} {[%emt 00:03:18]} Ng7 {[%clk 01:25:54]}
{[%emt 00:00:06]} 13. b4 {[%clk 01:09:34]} {[%emt 00:00:51]} a6 {[%clk
01:26:09]} {[%emt 00:00:16]} 14. a4 {[%clk 01:08:51]} {[%emt 00:01:12]} Bf5
{[%clk 01:26:23]} {[%emt 00:00:16]} 15. b5 {[%clk 01:04:33]} {[%emt 00:04:48]}
axb5 {[%clk 01:26:04]} {[%emt 00:00:51]} 16. axb5 {[%clk 01:04:50]} {[%emt
00:00:12]} Bxd3 {[%clk 01:24:42]} {[%emt 00:01:51]} 17. Qxd3 {[%clk 01:05:10]}
{[%emt 00:00:10]} Nf5 {[%clk 01:24:53]} {[%emt 00:00:19]} 18. Bxf6 {[%clk
01:03:35]} {[%emt 00:02:06]} Bxf6 {[%clk 01:24:25]} {[%emt 00:00:58]} 19. bxc6
{[%clk 01:03:50]} {[%emt 00:00:15]} bxc6 {[%clk 01:24:51]} {[%emt 00:00:04]} 20.
Rb3 {[%clk 01:00:33]} {[%emt 00:03:47]} Nd6 {[%clk 01:21:53]} {[%emt 00:03:27]}
21. Nd2 {[%clk 00:44:18]} {[%emt 00:16:46]} Qd7 {[%clk 01:19:52]} {[%emt
00:02:31]} 22. Rc1 {[%clk 00:42:14]} {[%emt 00:02:35]} Rfc8 {[%clk 01:15:55]}
{[%emt 00:04:26]} 23. Qc2 {[%clk 00:37:58]} {[%emt 00:04:46]} Kg7 {[%clk
01:06:50]} {[%emt 00:09:36]} 24. Ne2 {[%clk 00:36:13]} {[%emt 00:02:13]} h5
{[%clk 00:59:43]} {[%emt 00:07:38]} 25. Nf4 {[%emt 00:10:12]} Ra7 {[%clk
00:54:22]} {[%emt 00:00:56]} 26. Nd3 {[%clk 00:23:25]} {[%emt 00:08:30]} Rac7
{[%clk 00:50:21]} {[%emt 00:04:31]} 27. Rb6 {[%clk 00:20:59]} {[%emt 00:02:58]}
Nf5 {[%clk 00:43:59]} {[%emt 00:06:52]} 28. Nc5 {[%clk 00:20:01]} {[%emt
00:01:28]} Qe7 {[%clk 00:41:57]} {[%emt 00:02:31]} 29. Nf1 {[%clk 00:17:10]}
{[%emt 00:03:21]} Nd6 {[%clk 00:36:20]} {[%emt 00:06:08]} 30. Nd2 {[%clk
00:15:01]} {[%emt 00:02:39]} Nf5 {[%clk 00:36:30]} {[%emt 00:00:19]} 31. Qd3
{[%clk 00:14:37]} {[%emt 00:00:53]} Ra7 {[%clk 00:24:57]} {[%emt 00:12:04]} 32.
Na6 {[%clk 00:14:05]} {[%emt 00:01:02]} Qe8 {[%clk 00:23:24]} {[%emt 00:02:02]}
33. Qc3 {[%clk 00:13:03]} {[%emt 00:01:32]} Qf8 {[%clk 00:12:08]} {[%emt
00:11:47]} 34. Nb4 {[%clk 00:09:25]} {[%emt 00:04:08]} Rac7 {[%clk 00:11:18]}
{[%emt 00:01:21]} 35. Qb3 {[%clk 00:06:22]} {[%emt 00:03:32]} Qe8 {[%clk
00:09:57]} {[%emt 00:01:51]} 36. Qd3 {[%clk 00:02:54]} {[%emt 00:03:58]} h4
{[%clk 00:09:26]} {[%emt 00:01:02]} 37. h3 {[%clk 00:03:09]} {[%emt 00:00:15]}
Qd7 {[%clk 00:09:07]} {[%emt 00:00:48]} 38. Na6 {[%clk 00:01:49]} {[%emt
00:01:50]} Ra7 {[%clk 00:09:29]} {[%emt 00:00:08]} 39. Rcb1 {[%clk 00:00:56]}
{[%emt 00:01:24]} Nd6 {[%clk 00:08:14]} {[%emt 00:01:45]} 40. Nc5 {[%clk
00:00:56]} {[%emt 00:00:29]} Qe8 {[%clk 00:06:38]} {[%emt 00:02:03]} 41. R6b3
{[%clk 00:20:49]} {[%emt 00:10:40]} Rca8 {[%clk 00:35:39]} {[%emt 00:01:29]} 42.
Nf3 {[%clk 00:19:55]} {[%emt 00:01:24]} Ra2 {[%clk 00:33:16]} {[%emt 00:02:53]}
43. R3b2 {[%clk 00:18:45]} {[%emt 00:01:40]} R2a3 {[%clk 00:33:23]} {[%emt
00:00:23]} 44. Rb3 {[%clk 00:17:08]} {[%emt 00:02:07]} Ra2 {[%clk 00:33:49]}
{[%emt 00:00:04]} 45. Nd2 {[%clk 00:17:18]} {[%emt 00:00:20]} Bg5 {[%clk
00:28:11]} {[%emt 00:06:09]} 46. R3b2 {[%clk 00:16:33]} {[%emt 00:01:14]} R2a3
{[%clk 00:28:29]} {[%emt 00:00:12]} 47. Ncb3 {[%clk 00:16:42]} {[%emt
00:00:21]} Nf5 {[%clk 00:27:34]} {[%emt 00:01:26]} 48. Rc1 {[%clk 00:16:05]}
{[%emt 00:01:06]} Rb8 {[%clk 00:24:45]} {[%emt 00:03:19]} 49. Rc3 {[%clk
00:15:15]} {[%emt 00:01:21]} Bf6 {[%clk 00:19:59]} {[%emt 00:05:15]} 50. Qc2
{[%clk 00:15:22]} {[%emt 00:00:23]} Rb6 {[%clk 00:18:52]} {[%emt 00:01:37]} 51.
Rb1 {[%clk 00:15:38]} {[%emt 00:00:14]} Bg5 {[%clk 00:16:28]} {[%emt 00:02:54]}
52. Rc1 {[%clk 00:14:36]} {[%emt 00:01:33]} Raa6 {[%clk 00:16:14]} {[%emt
00:00:43]} 53. Nf3 {[%clk 00:11:51]} {[%emt 00:03:15]} Bf6 {[%clk 00:16:12]}
{[%emt 00:00:31]} 54. Nc5 {[%clk 00:12:05]} {[%emt 00:00:17]} Ra8 {[%clk
00:14:53]} {[%emt 00:01:48]} 55. Nd3 {[%clk 00:11:59]} {[%emt 00:00:36]} Rba6
{[%clk 00:11:29]} {[%emt 00:03:55]} 56. Nde5 {[%clk 00:11:00]} {[%emt
00:01:30]} Ra2 {[%clk 00:08:48]} {[%emt 00:03:10]} 57. Qd3 {[%clk 00:11:22]}
{[%emt 00:00:07]} Nd6 {[%clk 00:09:02]} {[%emt 00:00:17]} 58. Rxc6 {[%clk
00:10:52]} {[%emt 00:01:00]} Ne4 {[%clk 00:09:26]} {[%emt 00:00:06]} 59. R6c2
{[%clk 00:09:39]} {[%emt 00:01:43]} R8a3 {[%clk 00:09:15]} {[%emt 00:00:41]} 60.
Qe2 {[%clk 00:09:47]} {[%emt 00:00:21]} Qa4 {[%clk 00:09:37]} {[%emt 00:00:09]}
61. Ne1 {[%clk 00:06:24]} {[%emt 00:03:52]} Be7 {[%clk 00:07:37]} {[%emt
00:02:31]} 62. N5d3 {[%clk 00:05:49]} {[%emt 00:01:05]} Qa6 {[%clk 00:07:06]}
{[%emt 00:01:01]} 63. Nf4 {[%clk 00:05:29]} {[%emt 00:00:50]} Qa5 {[%emt
00:02:02]} 64. Nfd3 {[%clk 00:04:50]} {[%emt 00:00:10]} Qa6 {[%clk 00:06:33]}
{[%emt 00:00:30]} 65. Nf4 {[%clk 00:04:34]} {[%emt 00:00:46]} Qa5 {[%clk
00:07:00]} {[%emt 00:00:04]} 66. Nfd3 {[%clk 00:05:00]} {[%emt 00:00:03]} Qa6
{[%clk 00:07:15]} {[%emt 00:00:14]} 67. Rxa2 {[%clk 00:05:16]} {[%emt
00:00:16]} Rxa2 {[%clk 00:07:41]} {[%emt 00:00:03]} 68. Qg4 {[%clk 00:05:03]}
{[%emt 00:00:41]} Qa3 {[%clk 00:07:37]} {[%emt 00:00:36]} 69. Rc7 {[%clk
00:03:44]} {[%emt 00:01:49]} Nxf2 {[%clk 00:05:57]} {[%emt 00:02:10]} 70. Nxf2
{[%clk 00:02:55]} {[%emt 00:01:19]} Qxe3 {[%clk 00:05:52]} {[%emt 00:00:34]} 71.
Rxe7 {[%clk 00:02:57]} {[%emt 00:00:29]} Qxe7 {[%clk 00:06:01]} {[%emt
00:00:21]} 72. Nf3 {[%clk 00:02:53]} {[%emt 00:00:34]} Ra1+ {[%clk 00:06:16]}
{[%emt 00:00:15]} 73. Kh2 {[%emt 00:00:06]} Qc7+ {[%clk 00:06:33]} {[%emt
00:00:12]} 74. Ne5 {[%clk 00:03:16]} {[%emt 00:00:32]} Qc1 {[%clk 00:04:21]}
{[%emt 00:02:42]} 75. Qxh4 {[%clk 00:03:10]} {[%emt 00:00:36]} Qg1+ {[%clk
00:04:34]} {[%emt 00:00:17]} 76. Kg3 {[%clk 00:03:38]} {[%emt 00:00:01]} Ra2
{[%clk 00:04:35]} {[%emt 00:00:28]} 77. Qf4 {[%clk 00:03:31]} {[%emt 00:00:36]}
Ra3+ {[%clk 00:04:45]} {[%emt 00:00:22]} 78. Nf3 {[%clk 00:03:26]} {[%emt
00:00:34]} Qb1 {[%clk 00:03:47]} {[%emt 00:01:29]} 79. Qe5+ {[%clk 00:03:37]}
{[%emt 00:00:19]} Kg8 {[%clk 00:03:44]} {[%emt 00:00:30]} 80. Ng4 {[%clk
00:02:58]} {[%emt 00:01:13]} Qb4 {[%clk 00:03:30]} {[%emt 00:00:41]} 81. Nf6+
{[%clk 00:03:10]} {[%emt 00:00:20]} Kf8 {[%clk 00:03:44]} {[%emt 00:00:16]} 82.
Nxd5 {[%clk 00:03:27]} {[%emt 00:00:13]} 1-0